Cogmind - Beta 13 @@@ ROGUE MODE // 2024.04.26 @ 18:54:35 Player: luckinvolved Result: Destroyed by XN-BHA(R) with Subdweller Machine Gun Performance ------------- Evolutions (0) 0 Regions Visited (3) 600 Robots Destroyed (16) 80 Value Destroyed (359) 359 Prototype IDs (0) 0 Alien Tech Used (0) 0 Bonus (0) 0 TOTAL SCORE: 1039 Bonus ------- None Cogmind --------- Core Integrity 0/250 Matter 269/300 Energy 100/100 System Corruption 0% Temperature Cool (0) Movement Treading (160) Location -10/Subcaves Parts ------- > --- POWER (1) -------- (None) > --- PROPULSION (2) --- Spiked Treads > --- UTILITY (2) ------ Small Storage Unit Subdweller Optics > --- WEAPON (2) ------- Assault Rifle > --- INVENTORY (8) ---- Large Matter Pod (51) EM Pulse Gun Particle Gun Subdweller Laser Mining Laser Peak State ------------ > --- POWER ------------ Ion Engine > --- PROPULSION ------- Light Treads Spiked Treads > --- UTILITY ---------- Small Storage Unit Subdweller Optics > --- WEAPON ----------- Assault Rifle Assault Rifle > --- INVENTORY -------- Subdweller Power Source Large Matter Pod EM Pulse Gun Particle Gun Subdweller Laser Assault Rifle Mining Laser [Rating: 10] Favorites ----------- Power Ion Engine Engine Ion Engine Propulsion Light Treads Treads Light Treads Utility Small Storage Unit Device Subdweller Optics Storage Small Storage Unit Protection Utility Shielding Weapon Assault Rifle Energy Gun Medium Laser Ballistic Gun Assault Rifle Special Weapon Mining Laser Build | -11 -10 -10 -10 ------- Run | Yrd Mat Min Sub Slots Evolved . | . . . . Power . | . . . . Propulsion . | . . . . Utility . | . . . . Weapon . | . . . . Parts Attached 17 | 6 1 2 8 Power 3 | 1 . . 2 Engine 3 | 1 . . 2 Core . | . . . . Reactor . | . . . . Propulsion 3 | 2 . . 1 Treads 3 | 2 . . 1 Leg . | . . . . Wheel . | . . . . Hover . | . . . . Flight . | . . . . Utility 3 | 1 1 . 1 Device 1 | . . . 1 Storage 1 | 1 . . . Processor . | . . . . Hackware . | . . . . Protection 1 | . 1 . . Artifact . | . . . . Weapon 8 | 2 . 2 4 Energy Gun 1 | 1 . . . Energy Cannon . | . . . . Ballistic Gun 6 | 1 . 1 4 Ballistic Cannon . | . . . . Launcher . | . . . . Special Weapon 1 | . . 1 . Impact Weapon . | . . . . Slashing Weapon . | . . . . Piercing Weapon . | . . . . Special Melee Weapon . | . . . . Unidentified Prototypes . | . . . . Parts Lost 9 | . . 1 8 Power 3 | . . . 3 Propulsion 2 | . . . 2 Utility . | . . . . Weapon 4 | . . 1 3 Highest Loss Streak 5 | . . 1 5 To Critical Strikes . | . . . . Average Slot Usage (%) 99 | . 99 100 98 Engine 14 | . 14 14 14 Treads 27 | . 28 28 27 Device 2 | . . . 9 Storage 14 | . 14 14 14 Protection 10 | . 13 14 4 Energy Gun 6 | . 14 1 . Ballistic Gun 20 | . 14 24 26 Naked Turns . | . . . . Heaviest Build 16 | 14 15 15 16 Greatest Support 40 | 40 40 40 40 Greatest Overweight (x) . | . . . . Average Overweight (x) . | . . . . Largest Inventory Capacity 8 | 8 8 8 8 Average Capacity 7 | 7 8 8 8 Most Carried 8 | 2 8 8 8 Average Carried 6 | . 5 7 6 Final Capacity 8 | 8 8 8 8 Final Carried 8 | 2 8 7 5 Class Distribution -------------------- 100% | Mutant Dominant Class ---------------- Mutant | -10/Materials Mutant | -10/Mines Mutant | -10/Subcaves Resources | -11 -10 -10 -10 ----------- Run | Yrd Mat Min Sub Matter Collected 537 | 243 123 40 131 Remotely . | . . . . Salvage Created 413 | . 228 40 145 Parts 30 | . 12 7 11 Haulers Intercepted . | . . . . Recyclers Shooed . | . . . . Parts Field Recycled . | . . . . Retrieved Matter . | . . . . Parts Self-Destructed 7 | . . . 7 Prevented . | . . . . Kills | -11 -10 -10 -10 ------- Run | Yrd Mat Min Sub Combat Hostiles Destroyed 16 | . 7 3 6 Guns 16 | . 7 3 6 Classes Destroyed 3 | . 2 . 1 Swarmer 9 | . 3 3 3 Grunt 4 | . 4 . . Subdweller 3 | . . . 3 Best Kill Streak 5 | . 5 3 3 Combat Bots Only 5 | . 5 3 3 Max Kills in Single Turn 1 | . 1 1 1 Gunslinging . | . . . . Exploded . | . . . . Melee . | . . . . Uniques/NPCs Destroyed . | . . . . Combat | -11 -10 -10 -10 -------- Run | Yrd Mat Min Sub Hostile Shots Fired 125 | . 24 36 65 Missed 35 | . 6 12 17 Damage Taken 1373 | . 198 201 974 Core 265 | . 64 16 185 Absorbed by Shields . | . . . . Redirected to Shielding 6 | . 3 3 . Core Remaining (%) 100 | 100 . . . Volleys Fired 51 | . 15 17 19 Largest 2 | . 2 2 2 Hottest 100 | . 70 100 40 Shots Fired 95 | . 30 28 37 Gun 89 | . 30 22 37 Cannon . | . . . . Launcher . | . . . . Special 6 | . . 6 . Kinetic 64 | . 15 12 37 Thermal 31 | . 15 16 . Explosive . | . . . . Electromagnetic . | . . . . Robot Hit Streak 12 | . 10 2 12 Robot Miss Streak 7 | . 2 7 2 Penetration Max . | . . . . Secondary Targets 3 | . 1 . 2 Max Gunslinging Chain 1 | . 1 . 1 Shots Hit Robots 57 | . 22 7 28 Core Hits 24 | . 12 3 9 Critical Kills . | . . . . Critical Parts Destroyed . | . . . . Critical Strikes 1 | . 1 . . Burn 1 | . 1 . . Melee Attacks . | . . . . Impact . | . . . . Slashing . | . . . . Piercing . | . . . . Sneak Attacks . | . . . . Combat Hostiles . | . . . . Follow-up Attacks . | . . . . Damage Inflicted 764 | . 270 123 371 Guns 764 | . 270 123 371 Cannons . | . . . . Explosions . | . . . . Melee . | . . . . Ramming . | . . . . Kinetic 599 | . 143 85 371 Thermal 165 | . 127 38 . Explosive . | . . . . Electromagnetic . | . . . . Impact . | . . . . Slashing . | . . . . Piercing . | . . . . Highest Corruption . | . . . . Average Corruption . | . . . . Corruption Purged . | . . . . Corruption Blocked . | . . . . Overload Shots . | . . . . Overflow Damage . | . . . . Projectiles . | . . . . Explosions . | . . . . Melee . | . . . . Knockbacks . | . . . . Impact . | . . . . Kinetic . | . . . . Secondary . | . . . . Self-Inflicted Damage . | . . . . Shots . | . . . . Rammed . | . . . . Targets Rammed . | . . . . Kicked . | . . . . Crushed . | . . . . Highest Temperature 99 | . 99 90 . Average Temperature 39 | . 33 44 . Received Heat Transfer 204 | . 78 . 126 Siege Activations . | . . . . Robots Corrupted . | . . . . Combat Hostiles . | . . . . Parts Fried . | . . . . Impact Corruptions . | . . . . Robots Melted . | . . . . Combat Hostiles . | . . . . Parts Melted 3 | . 2 1 . Heat Transferred 555 | . 444 111 . Parts Sabotaged . | . . . . Parts Stolen . | . . . . Parts Stripped . | . . . . Power Chain Reactions . | . . . . Alert | -11 -10 -10 -10 ------- Run | Yrd Mat Min Sub Peak Influence 190 | . 190 61 . Initial . | . . . . Average 33 | . 24 55 . Maximum Alert Level . | . . . . Low Security (%) 100 | 100 100 100 . Level 1 . | . . . . Level 2 . | . . . . Level 3 . | . . . . Level 4 . | . . . . Level 5 . | . . . . High Security . | . . . . Max Security . | . . . . Squads Dispatched . | . . . . Investigation . | . . . . Extermination . | . . . . Reinforcement . | . . . . Assault . | . . . . Garrison . | . . . . Intercept . | . . . . Searches Triggered . | . . . . Construction Impeded . | . . . . Haulers Reinforced . | . . . . Active Scanning Responses . | . . . . Cargo Convoy Interrupts . | . . . . Stealth | -11 -10 -10 -10 --------- Run | Yrd Mat Min Sub Distress Signals . | . . . . Communications Jammed . | . . . . Distress Signals . | . . . . Times Spotted 26 | . 9 3 14 Peak Tracking Total 5 | . 5 3 4 Tactical Retreats 3 | . 1 . 2 Traps | -11 -10 -10 -10 ------- Run | Yrd Mat Min Sub Traps Triggered . | . . . . Indirectly . | . . . . Trap Hack Attempts . | . . . . Triggered . | . . . . Disarmed . | . . . . Reprogrammed . | . . . . Reused . | . . . . Traps Extracted . | . . . . Installed . | . . . . Triggered . | . . . . Machines | -11 -10 -10 -10 ---------- Run | Yrd Mat Min Sub Machines Disabled . | . . . . Max in Single Turn . | . . . . Machines Repaired . | . . . . Machines Dismantled . | . . . . Machines Sabotaged . | . . . . Overloaded Fab Kills . | . . . . Hacking | -11 -10 -10 -10 --------- Run | Yrd Mat Min Sub Machines Accessed 2 | . 2 . . Terminals 2 | . 2 . . Fabricators . | . . . . Repair Stations . | . . . . Recycling Units . | . . . . Scanalyzers . | . . . . Garrison Access . | . . . . Total Hacks 6 | . 6 . . Successful . | . . . . Failed 6 | . 6 . . Catastrophic 1 | . 1 . . Database Lockouts . | . . . . Manual 6 | . 6 . . Terminals 6 | . 6 . . Fabricators . | . . . . Repair Stations . | . . . . Recycling Units . | . . . . Scanalyzers . | . . . . Garrison Access . | . . . . Terminal Hacks . | . . . . Fabricator Hacks . | . . . . Repair Station Hacks . | . . . . Recycling Unit Hacks . | . . . . Scanalyzer . | . . . . Garrison Access Hacks . | . . . . Unauthorized Hacks . | . . . . Terminals . | . . . . Fabricators . | . . . . Repair Stations . | . . . . Recycling Units . | . . . . Scanalyzers . | . . . . Garrison Access . | . . . . Data Cores Recovered . | . . . . Used . | . . . . Hacking Detections 2 | . 2 . . Full Trace Events 1 | . 1 . . Feedback Events . | . . . . Feedback Blocked . | . . . . Robot Schematics Acquired . | . . . . Robots Built . | . . . . Authchips . | . . . . Time . | . . . . Total Robot Build Rating . | . . . . Part Schematics Acquired . | . . . . Parts Built . | . . . . Authchips . | . . . . Time . | . . . . Total Part Build Rating . | . . . . Parts Repaired . | . . . . Time . | . . . . Parts Recycled . | . . . . Recycled Matter . | . . . . Retrieved Matter . | . . . . Retrieved Components . | . . . . Parts Scanalyzed . | . . . . Part Schematics Acquired . | . . . . Parts Damaged . | . . . . Bothacking | -11 -10 -10 -10 ------------ Run | Yrd Mat Min Sub Used RIF Installer . | . . . . Robots Hacked . | . . . . Non-combat . | . . . . Combat . | . . . . Robot Hacks Applied . | . . . . Relay Couplers Released . | . . . . Fabnet Peak Effective % . | . . . . Robots Rewired . | . . . . Allies Hacked . | . . . . Hacks Repelled . | . . . . Allies | -11 -10 -10 -10 -------- Run | Yrd Mat Min Sub Total Allies . | . . . . Largest Group . | . . . . Highest-Rated Group . | . . . . Highest-Rated Ally . | . . . . Total Orders . | . . . . Ally Attacks . | . . . . Total Damage . | . . . . Kills . | . . . . Allies Corrupted . | . . . . Allies Melted . | . . . . Intel | -11 -10 -10 -10 ------- Run | Yrd Mat Min Sub Robot Analysis Total . | . . . . Derelict Logs Recovered 1 | . . . 1 Drone Launches . | . . . . Drone Recoveries . | . . . . Exploration | -11 -10 -10 -10 ------------- Run | Yrd Mat Min Sub Turns Passed 1118 | 71 454 269 324 Spaces Moved 542 | 40 241 111 150 Core 3 | 3 . . . Treads 539 | 37 241 111 150 Legs . | . . . . Wheels . | . . . . Hover . | . . . . Flight . | . . . . Fastest Speed 50 | 50 160 160 160 Average Speed 159 | 151 160 160 160 Slowest Speed 160 | 160 160 160 160 Overloaded Moves . | . . . . Propulsion Burnouts . | . . . . Robots Hopped . | . . . . Cave-ins Triggered . | . . . . Exploration Rate (%) 23 | 5 35 33 19 Regions Visited 3 Branch Regions 2 Pre-discovered Areas 1 | . . . 1 Known Exits Taken . | . . . . Unknown Exits Taken 3 | 1 1 1 . Scrap Searched 1 | . . . 1 Spaces Dug . | . . . . Terrain Destroyed 1 | . . 1 . Melee . | . . . . Projectile 1 | . . 1 . AOE . | . . . . Terrain Rammed . | . . . . Walls Destroyed . | . . . . Machines Disabled . | . . . . Actions | -11 -10 -10 -10 --------- Run | Yrd Mat Min Sub Total 686 | 47 281 162 196 Wait 60 | . 13 33 14 Move 539 | 39 240 110 150 Hop . | . . . . Pick Up 15 | 2 9 . 4 Fast Attach 7 | 6 1 . . Attach 7 | . . 1 6 Detach . | . . . . Swap 3 | . . 1 2 Drop 4 | . 3 . 1 Fire 51 | . 15 17 19 Melee . | . . . . Ram . | . . . . Kick . | . . . . Crush . | . . . . Escape Stasis . | . . . . Rewire . | . . . . Trap . | . . . . Miscellaneous . | . . . . Route ------- -11/Scrapyard -10/Materials -10/Mines (discovered 2 exits: [*Mat] / [*Sub]) -10/Subcaves History --------- Turn | Location | Event 2 | -11/Scrapyard | Met Revision 17 4 | -11/Scrapyard | Discovered new exit (range 16) 72 | -11/Scrapyard | Entered Materials 153 | -10/Materials | Discovered new exit (range 14) 301 | -10/Materials | Build established: Mutant 526 | -10/Materials | Entered Mines 704 | -10/Mines | Discovered new exit (range 5) 792 | -10/Mines | Discovered new exit (range 3) 795 | -10/Mines | Entered Subcaves 855 | -10/Subcaves | Ambushed by Subdweller buried in earth 856 | -10/Subcaves | Core integrity fell below 50% 934 | -10/Subcaves | Learned 2 Materials zone layouts 937 | -10/Subcaves | Shifting Twisted Machinery released Sub. Machine Gun 1098 | -10/Subcaves | Core integrity fell below 20% 1106 | -10/Subcaves | Learned location of Zion (-7) 1106 | -10/Subcaves | Met a Zionite searching for "candidates" 1119 | -10/Subcaves | Destroyed by XN-BHA(R) with Subdweller Machine Gun Last Messages --------------- 00963_ Lgt. Treads destroyed. 00967_ Flight Unit fries itself beyond repair. 00968_ S-10 Pest destroyed. 00968_ Switching to secondary target: S-10 Pest. 00971_ S-10 Pest destroyed. 00974_ Acquired 20 matter. 00978_ Lgt. Assault Rifle fries itself beyond repair. 00982_ Acquired 17 matter. 00984_ Flight Unit fries itself beyond repair. 01065_ L4-5WY(z): "She is not going to be happy we haven't found any suitable candidates yet." 01081_ Ion Engine destroyed. 01083_ Assault Rifle destroyed. 01093_ Lgt. Treads destroyed. 01097_ Assault Rifle destroyed. 01106_ L4-5WY(z): "Hey you! It's really dangerous down here, I feel that you could die at any moment. For your health and safety might I suggest a trip to Zion?" World map updated: -7/Zion. 01115_ Sub. Power Source destroyed. Map ----- +----------------------------------------------------+ | ?????????????????????????????????????????????????? | | ?????????????????????????????????????????????????? | | ?????????????????????????????????????????????????? | | ?????????????????????????????????????????????????? | | ?????????????????????????????????????????????????? | | ?????????????????????????????????????????????????? | | ?????????????????????????????????????????????????? | | ?????????????????????????????????????????????????? | | ?????????????????????????????????????????????????? | | ?????????????????????????????????????????????????? | | ?????????????????????????????????????????????????? | | ?????????????????????????????????????????????????? | | ?????????????????????????????????????????????????? | | ?????????????????????????????????????????????????? | | ?????????????????????????????????????????????????? | | ?????????????????????????????????????????????????? | | ?????????????????????????????????????????????????? | | ?????????????????????????????????????????????????? | | ??????????#???????????????????###????????????????? | | ??????????# ???????????????## #????????????????? | | ??????????# ??????????#### # #????????????????? | | ??????????# #????????## #????????????????? | | ??????????# ##??????# #####????????????? | | ???????????# ####### z "#????????????? | | ???????????# ## #????????????? | | ????????????? # @ #????????????? | | ?????????????# ### # # #????????????? | | ?????????????# ### z#??##? ##?"???????????? | | #????????????# ## ###?##? "#""???????????? | | #????????????# ## ## " """"? #??????? | | #???? ???????## RR """" ??????? | | #??? ???????####### # ?????? | | ##? ??????????????# #?????? | | ## ??????????????# #??????? | | ???????????????# "" #??????? | | ????????????????## " "" ### #??????? | | #??????????????###### """ """"## #???????????? | | #??????????????## ## " ###" #??????????????? | | #???????????????# ## #?? ""??????????????? | | ##????????###????# ##????"??????????????? | | #????????# #????## #??????????#?????????? | | ?????????# #????## #?????? ""###???????? | | #??????????## ###### ###" "" #???????? | | ######????## ## " #?????? | | # ##?### ### #?????????? | | # ### #?#"""" ##?????????? | | ##?#"""" ##??????????? | | ## ### #? """"" #???????????? | | ## ### #?### """"" #???????????? | | ### ###?# #??# """"" #???????????? | +----------------------------------------------------+ Best States ------------- Heat Dissipation 25 Energy Generation 15 Energy Capacity 250 Matter Stores 300 Matter Capacity 300 Sight Range 21 Terrain Scan Density 10 Utility Shielding 33 Evasion (%) 40 Recoil Reduction 2 Item Schematics ----------------- None Robot Schematics ------------------ None Fabricated ------------ Nothing Alien Tech Used ----------------- None Achievements -------------- None Challenges ------------ None Game ------ Seed ReflectiveSalvageAutohacker Manual? 0 Play Time 00:08:40 Cumulative 48.2 hours Start 2024.04.26 @ 18:45:26 End 2024.04.26 @ 18:54:35 Sessions 1 Manual Loads 0 Difficulty Rogue Special Mode None Game No. 80 Rogue 75 Adventurer 5 Explorer 0 Win Type - Total 1 Types 1/0/0/0/0/0/0/0/0 Lore% 14 Gallery% 50 Achievement% 33 Wizard Run 0 Options --------- Layout 0 ASCII 0 Keyboard 0 Movement Mouse Keybinds 0 Fullscreen 1 Font 24/Smallcaps Map View 76x50 Zoom Use 17% Tactical HUD 1 Map Filters NONE Filters NONE Steam 1 RUN: 9a9568a2-7c13-4692-95b9-b353b4e1540e